[Event "RUS-ch Rapid Women 2021"]
[White "Kovanova,Baira"]
[Black "Paramzina,Anastasya"]
[Site "Sochi"]
[Round "9.4"]
[Annotator "NA"]
[Result "1-0"]
[Date "2021.10.13"]
[WhiteElo "2331"]
[BlackElo "2260"]
[PlyCount "71"]
[TimeControl "5400+30"]

1. e4 {[%emt 1:15:40]} c5 {[%emt 1:15:41]} 2. Nf3 {[%emt 0:0:22]} d6 {[%emt 0:0:0]} 3. d4 {[%emt 0:0:20]} cxd4 {[%emt 0:0:20]} 4. Nxd4 {[%emt 0:0:22]} Nf6 {[%emt 0:0:21]} 5. Nc3 {[%emt 0:0:21]} a6 {[%emt 0:0:22]} 6. Be3 {[%emt 0:0:23]
} e5 {[%emt 0:0:35]} 7. Nf3 {[%emt 0:0:22]} Qc7 {[%emt 0:0:44]
} 8. a4 {[%emt 0:0:40]} h6 {[%emt 0:0:29]} 9. a5 {[%emt 0:0:35]} Be6 {[%emt 0:0:25]
} 10. Be2 {[%emt 0:1:41]} Nbd7 {[%emt 0:0:29]} 11. Nd5 {[%emt 0:1:11]
} Nxd5 {[%emt 0:0:28]} 12. exd5 {[%emt 0:0:23]} Bg4 {[%emt 0:0:0]} 13. 0-0 {[%emt 0:1:37]} Be7 {[%emt 0:0:23]} 14. h3 {[%emt 0:2:26]} Bxf3 {[%emt 0:0:55]} 15. Bxf3 {[%emt 0:0:23]} 0-0 {[%emt 0:0:22]} 16. Be2 {[%emt 0:0:55]
} Bg5 {[%emt 0:2:14]} 17. Bxg5 {[%emt 0:0:57]} hxg5 {[%emt 0:0:0]} 18. Qd2 {[%emt 0:0:35]} e4 {[%emt 0:1:7]} 19. c4 {[%emt 0:2:0]} Qd8 {[%emt 0:0:26]} 20. b4 {[%emt 0:2:2]} Rc8 {[%emt 0:1:1]} 21. Rac1 {[%emt 0:0:21]
} f5 {[%emt 0:0:35]} 22. c5 {[%emt 0:1:40]} dxc5 {[%emt 0:0:0]} 23. d6 {[%emt 0:0:22]} Kh8 {[%emt 0:0:54]} 24. bxc5 {[%emt 0:1:49]} Nxc5 {[%emt 0:1:4]} 25. Qd5 {[%emt 0:0:21]} Nd3 {[%emt 0:4:4]} 26. Bxd3 {[%emt 0:0:58]
} exd3 {[%emt 0:0:26]} 27. Rxc8 {[%emt 0:0:55]} Qxc8 {[%emt 0:0:0]} 28. d7 {[%emt 0:0:22]} Qb8 {[%emt 0:1:16]} 29. Rd1 {[%emt 0:0:23]} g4 {[%emt 0:0:31]} 30. Rxd3 {[%emt 0:0:29]} Rd8 {[%emt 0:0:42]} 31. hxg4 {[%emt 0:1:15]
} fxg4 {[%emt 0:0:21]} 32. Qh5+ {[%emt 0:0:21]} Kg8 {[%emt 0:0:0]} 33. Qxg4 {[%emt 0:0:22]} Qe5 {[%emt 0:0:28]} 34. Qc4+ {[%emt 0:0:22]
} Kf8 {[%emt 0:0:36]} 35. Rf3+ {[%emt 0:0:32]} Ke7 {[%emt 0:0:22]} 36. Re3 {[%emt 0:1:28]
} 1-0

[Event "RUS-ch Rapid Women 2021"]
[White "Goltseva,Ekaterina"]
[Black "Fominykh,Maria"]
[Site "Sochi"]
[Round "9.5"]
[Annotator "NA"]
[Result "1-0"]
[Date "2021.10.13"]
[WhiteElo "2304"]
[BlackElo "2206"]
[PlyCount "69"]
[TimeControl "5400+30"]

1. d4 {[%emt 1:15:41]} Nf6 {[%emt 1:15:43]} 2. c4 {[%emt 0:0:21]} g6 {[%emt 0:0:0]} 3. Nc3 {[%emt 0:0:23]} Bg7 {[%emt 0:0:21]} 4. e4 {[%emt 0:0:19]} d6 {[%emt 0:0:22]} 5. Nge2 {[%emt 0:0:23]} 0-0 {[%emt 0:0:47]} 6. Ng3 {[%emt 0:0:0]} c5 {[%emt 0:0:29]} 7. d5 {[%emt 0:0:23]} e6 {[%emt 0:0:26]} 8. Be2 {[%emt 0:0:25]
} exd5 {[%emt 0:0:21]} 9. cxd5 {[%emt 0:0:22]} Re8 {[%emt 0:0:0]} 10. 0-0 {[%emt 0:1:8]} a6 {[%emt 0:1:10]} 11. a4 {[%emt 0:0:24]} Nbd7 {[%emt 0:0:54]} 12. h3 {[%emt 0:2:46]} Qc7 {[%emt 0:2:16]} 13. Be3 {[%emt 0:0:0]} Rb8 {[%emt 0:2:3]} 14. Qc2 {[%emt 0:2:32]} b6 {[%emt 0:3:56]} 15. b3 {[%emt 0:2:29]} Bb7 {[%emt 0:1:12]} 16. Rad1 {[%emt 0:0:44]} Nf8 {[%emt 0:2:36]
} 17. Rfe1 {[%emt 0:1:48]} h5 {[%emt 0:0:51]} 18. Nf1 {[%emt 0:0:0]} Qe7 {[%emt 0:0:30]} 19. Bd3 {[%emt 0:0:58]} N8d7 {[%emt 0:1:9]} 20. f4 {[%emt 0:0:31]} Nh7 {[%emt 0:1:21]} 21. e5 {[%emt 0:1:50]} dxe5 {[%emt 0:0:0]} 22. f5 {[%emt 0:0:42]} Nhf8 {[%emt 0:1:19]} 23. fxg6 {[%emt 0:0:59]} fxg6 {[%emt 0:0:58]} 24. d6 {[%emt 0:0:51]} Qf7 {[%emt 0:0:41]} 25. Bc4 {[%emt 0:0:40]
} Ne6 {[%emt 0:0:22]} 26. Ng3 {[%emt 0:0:32]} Nf6 {[%emt 0:0:0]} 27. Rf1 {[%emt 0:0:28]} Qd7 {[%emt 0:0:36]} 28. Qxg6 {[%emt 0:0:35]} b5 {[%emt 0:0:43]} 29. axb5 {[%emt 0:0:35]} axb5 {[%emt 0:0:29]} 30. Bxb5 {[%emt 0:0:34]
} Qf7 {[%emt 0:0:26]} 31. Bxe8 {[%emt 0:0:29]} Rxe8 {[%emt 0:0:0]} 32. Rxf6 {[%emt 0:0:36]} Qxg6 {[%emt 0:0:42]} 33. Rxg6 {[%emt 0:0:0]} Kf7 {[%emt 0:0:27]} 34. Rxg7+ {[%emt 0:0:31]} Nxg7 {[%emt 0:0:23]} 35. d7 {[%emt 0:0:25]} 1-0

[Event "RUS-ch Rapid Women 2021"]
[White "Diakonova,Ekaterina"]
[Black "Solozhenkina,Elizaveta"]
[Site "Sochi"]
[Round "9.6"]
[Annotator "NA"]
[Result "1/2-1/2"]
[Date "2021.10.13"]
[WhiteElo "2157"]
[BlackElo "2325"]
[PlyCount "102"]
[TimeControl "5400+30"]

1. d4 {[%emt 1:15:41]} Nf6 {[%emt 1:15:42]} 2. Bf4 {[%emt 0:0:21]} g6 {[%emt 0:0:20]
} 3. e3 {[%emt 0:0:21]} Bg7 {[%emt 0:0:22]} 4. Nf3 {[%emt 0:0:0]} 0-0 {[%emt 0:0:20]} 5. h3 {[%emt 0:0:24]} d6 {[%emt 0:0:25]} 6. Be2 {[%emt 0:0:20]
} Nbd7 {[%emt 0:0:24]} 7. 0-0 {[%emt 0:0:22]} Qe8 {[%emt 0:0:0]} 8. Bh2 {[%emt 0:0:23]} e5 {[%emt 0:0:45]} 9. c4 {[%emt 0:0:23]} Qe7 {[%emt 0:2:21]
} 10. Nc3 {[%emt 0:0:22]} a6 {[%emt 0:0:29]} 11. Qc2 {[%emt 0:0:0]} b6 {[%emt 0:1:38]} 12. d5 {[%emt 0:3:36]} Ne8 {[%emt 0:0:59]} 13. b4 {[%emt 0:0:45]} f5 {[%emt 0:0:29]} 14. Nd2 {[%emt 0:1:40]} e4 {[%emt 0:0:0]} 15. Nb3 {[%emt 0:1:24]} Ne5 {[%emt 0:0:23]} 16. Rac1 {[%emt 0:2:1]} g5 {[%emt 0:1:6]} 17. c5 {[%emt 0:1:23]} f4 {[%emt 0:1:37]} 18. exf4 {[%emt 0:0:0]} gxf4 {[%emt 0:0:22]} 19. Qxe4 {[%emt 0:0:32]} f3 {[%emt 0:3:5]} 20. Bxf3 {[%emt 0:1:32]} Nxf3+ {[%emt 0:0:23]} 21. gxf3 {[%emt 0:0:25]} Qg5+ {[%emt 0:0:20]
} 22. Kh1 {[%emt 0:1:32]} Bxh3 {[%emt 0:1:37]} 23. Rg1 {[%emt 0:0:21]
} Qh5 {[%emt 0:0:56]} 24. Nd4 {[%emt 0:1:18]} Nf6 {[%emt 0:0:0]} 25. Qd3 {[%emt 0:1:24]} Kh8 {[%emt 0:0:42]} 26. Ne6 {[%emt 0:2:6]} Bxe6 {[%emt 0:0:23]} 27. dxe6 {[%emt 0:0:22]} Rae8 {[%emt 0:0:58]} 28. cxd6 {[%emt 0:0:39]} cxd6 {[%emt 0:0:21]} 29. Ne2 {[%emt 0:0:39]} Bh6 {[%emt 0:0:0]} 30. Ng3 {[%emt 0:0:49]} Qh3 {[%emt 0:0:44]} 31. Rc7 {[%emt 0:0:53]} Bf4 {[%emt 0:1:5]} 32. Qf5 {[%emt 0:0:39]} Qh6 {[%emt 0:1:15]} 33. Rf7 {[%emt 0:0:26]
} Rxf7 {[%emt 0:0:30]} 34. exf7 {[%emt 0:0:22]} Rf8 {[%emt 0:0:0]} 35. Qe6 {[%emt 0:0:34]} Be5 {[%emt 0:0:53]} 36. Rg2 {[%emt 0:0:53]} Qc1+ {[%emt 0:0:23]} 37. Rg1 {[%emt 0:0:20]} Qc7 {[%emt 0:0:52]} 38. Nh5 {[%emt 0:0:33]
} Qxf7 {[%emt 0:0:26]} 39. Qxf7 {[%emt 0:0:26]} Rxf7 {[%emt 0:0:0]} 40. Bxe5 {[%emt 0:0:35]} dxe5 {[%emt 0:0:22]} 41. Nxf6 {[%emt 0:0:0]} Rxf6 {[%emt 0:0:21]} 42. Rg3 {[%emt 0:0:25]} Rf4 {[%emt 0:0:36]} 43. a3 {[%emt 0:0:25]} a5 {[%emt 0:0:21]} 44. bxa5 {[%emt 0:0:30]} bxa5 {[%emt 0:0:0]} 45. Kg2 {[%emt 0:0:38]} Ra4 {[%emt 0:0:55]} 46. Rg5 {[%emt 0:0:30]} Rxa3 {[%emt 0:0:22]} 47. Rxe5 {[%emt 0:0:21]} Kg7 {[%emt 0:0:33]} 48. Re6 {[%emt 0:0:32]
} a4 {[%emt 0:0:26]} 49. Ra6 {[%emt 0:0:21]} Kf7 {[%emt 0:0:0]} 50. Rh6 {[%emt 0:0:22]} Kg7 {[%emt 0:0:21]} 51. Ra6 {[%emt 0:0:22]} Kf7 {[%emt 0:0:21]} 1/2-1/2

[Event "RUS-ch Rapid Women 2021"]
[White "Nasybullina,Alfia"]
[Black "Goltseva,Ekaterina"]
[Site "Sochi"]
[Round "10.2"]
[Annotator "NA"]
[Result "0-1"]
[Date "2021.10.13"]
[WhiteElo "2101"]
[BlackElo "2304"]
[PlyCount "58"]
[TimeControl "5400+30"]

1. Nf3 {[%emt 1:15:42]} Nf6 {[%emt 1:15:42]} 2. g3 {[%emt 0:0:22]} d5 {[%emt 0:0:24]
} 3. Bg2 {[%emt 0:0:22]} e6 {[%emt 0:0:22]} 4. 0-0 {[%emt 0:0:0]} c5 {[%emt 0:0:22]} 5. b3 {[%emt 0:0:23]} Nc6 {[%emt 0:0:28]} 6. Bb2 {[%emt 0:0:22]
} Be7 {[%emt 0:0:33]} 7. c4 {[%emt 0:0:26]} d4 {[%emt 0:0:22]} 8. d3 {[%emt 0:0:48]} e5 {[%emt 0:1:2]} 9. e4 {[%emt 0:1:12]} 0-0 {[%emt 0:0:0]} 10. h3 {[%emt 0:0:44]} Bd7 {[%emt 0:2:38]} 11. Nbd2 {[%emt 0:1:11]} Ne8 {[%emt 0:1:44]} 12. Re1 {[%emt 0:1:24]} Qc8 {[%emt 0:1:9]} 13. Kh2 {[%emt 0:1:10]
} Nd6 {[%emt 0:0:35]} 14. Nf1 {[%emt 0:1:0]} Qc7 {[%emt 0:0:0]} 15. g4 {[%emt 0:0:51]} f5 {[%emt 0:1:37]} 16. gxf5 {[%emt 0:2:10]} Nxf5 {[%emt 0:0:25]} 17. Ng3 {[%emt 0:3:18]} Nh4 {[%emt 0:0:55]} 18. Nxh4 {[%emt 0:0:26]
} Bxh4 {[%emt 0:0:24]} 19. Rf1 {[%emt 0:0:36]} Rf6 {[%emt 0:0:0]} 20. Bc1 {[%emt 0:1:56]} Raf8 {[%emt 0:0:47]} 21. Kg1 {[%emt 0:0:48]} Ne7 {[%emt 0:0:53]} 22. Qh5 {[%emt 0:0:46]} Ng6 {[%emt 0:0:23]} 23. Bd2 {[%emt 0:2:19]
} Qc8 {[%emt 0:0:35]} 24. Kh2 {[%emt 0:0:53]} Rxf2 {[%emt 0:0:0]} 25. Rxf2 {[%emt 0:0:21]} Rxf2 {[%emt 0:0:23]} 26. Bg5 {[%emt 0:2:47]} Bxh3 {[%emt 0:3:7]} 27. Bxh4 {[%emt 0:0:32]} Rxg2+ {[%emt 0:0:40]} 28. Kh1 {[%emt 0:0:22]} Bg4 {[%emt 0:0:28]} 29. Qg5 {[%emt 0:0:59]} Bf3 {[%emt 0:0:0]} 0-1

[Event "RUS-ch Rapid Women 2021"]
[White "Murashova,Ekaterina"]
[Black "Kovanova,Baira"]
[Site "Sochi"]
[Round "10.3"]
[Annotator "NA"]
[Result "0-1"]
[Date "2021.10.13"]
[WhiteElo "2213"]
[BlackElo "2331"]
[PlyCount "72"]
[TimeControl "5400+30"]

1. d4 {[%emt 1:15:42]} Nf6 {[%emt 1:15:42]} 2. Bf4 {[%emt 0:0:23]} e6 {[%emt 0:0:25]
} 3. e3 {[%emt 0:0:29]} d5 {[%emt 0:0:22]} 4. Nf3 {[%emt 0:0:0]} c5 {[%emt 0:0:23]} 5. c3 {[%emt 0:0:51]} Bd6 {[%emt 0:0:33]} 6. Bg3 {[%emt 0:0:32]
} Nc6 {[%emt 0:0:28]} 7. Nbd2 {[%emt 0:0:38]} 0-0 {[%emt 0:0:0]} 8. Bd3 {[%emt 0:0:44]} Qe7 {[%emt 0:0:50]} 9. Ne5 {[%emt 0:1:59]} Nd7 {[%emt 0:1:9]
} 10. f4 {[%emt 0:4:30]} f5 {[%emt 0:3:22]} 11. 0-0 {[%emt 0:0:0]} Nf6 {[%emt 0:0:29]} 12. Bh4 {[%emt 0:0:50]} Qe8 {[%emt 0:1:13]} 13. Rf3 {[%emt 0:1:0]} Ne4 {[%emt 0:1:23]} 14. Rh3 {[%emt 0:0:38]} Ne7 {[%emt 0:1:29]
} 15. a4 {[%emt 0:2:43]} Bxe5 {[%emt 0:0:51]} 16. fxe5 {[%emt 0:0:41]
} cxd4 {[%emt 0:0:39]} 17. Bxe7 {[%emt 0:1:49]} Qxe7 {[%emt 0:0:0]} 18. cxd4 {[%emt 0:1:50]} Bd7 {[%emt 0:0:43]} 19. Bxe4 {[%emt 0:0:32]
} fxe4 {[%emt 0:0:40]} 20. Qb3 {[%emt 0:0:38]} Rac8 {[%emt 0:1:42]} 21. Rd1 {[%emt 0:1:47]} b6 {[%emt 0:2:7]} 22. Rg3 {[%emt 0:0:40]} Qe8 {[%emt 0:0:0]} 23. Qb4 {[%emt 0:1:15]} Bxa4 {[%emt 0:0:57]} 24. b3 {[%emt 0:0:21]} Bb5 {[%emt 0:0:29]} 25. h3 {[%emt 0:0:52]} a5 {[%emt 0:0:42]} 26. Qa3 {[%emt 0:0:0]} Rc2 {[%emt 0:0:49]} 27. Nb1 {[%emt 0:0:44]} Qf7 {[%emt 0:0:39]} 28. Kh2 {[%emt 0:0:25]} h5 {[%emt 0:2:7]} 29. h4 {[%emt 0:0:28]} Rc6 {[%emt 0:0:0]} 30. Rc1 {[%emt 0:0:23]} Rfc8 {[%emt 0:0:35]} 31. Rxc6 {[%emt 0:0:25]
} Rxc6 {[%emt 0:0:21]} 32. Qb2 {[%emt 0:0:26]} Qf1 {[%emt 0:0:47]} 33. Nc3 {[%emt 0:0:43]
} Bd3 {[%emt 0:0:20]} 34. Qd2 {[%emt 0:0:28]} b5 {[%emt 0:0:0]} 35. Rg5 {[%emt 0:0:27]} b4 {[%emt 0:0:26]} 36. Na4 {[%emt 0:0:24]} Rc2 {[%emt 0:0:27]} 0-1

[Event "RUS-ch Rapid Women 2021"]
[White "Kovalevskaya,Ekaterina"]
[Black "Gvanceladze,Anna"]
[Site "Sochi"]
[Round "10.4"]
[Annotator "NA"]
[Result "1-0"]
[Date "2021.10.13"]
[WhiteElo "2364"]
[BlackElo "2196"]
[PlyCount "69"]
[TimeControl "5400+30"]

1. Nf3 {[%emt 1:15:44]} d5 {[%emt 1:15:42]} 2. g3 {[%emt 0:0:20]} Nf6 {[%emt 0:0:33]
} 3. Bg2 {[%emt 0:0:22]} Bf5 {[%emt 0:0:25]} 4. c4 {[%emt 0:0:0]} e6 {[%emt 0:0:38]} 5. Qb3 {[%emt 0:0:56]} Qc8 {[%emt 0:0:57]} 6. 0-0 {[%emt 0:0:55]
} Be7 {[%emt 0:0:46]} 7. Nc3 {[%emt 0:2:20]} c6 {[%emt 0:0:30]
} 8. d4 {[%emt 0:0:51]} h6 {[%emt 0:4:8]} 9. Bf4 {[%emt 0:1:51]} Nbd7 {[%emt 0:0:37]
} 10. Rac1 {[%emt 0:0:32]} dxc4 {[%emt 0:0:41]} 11. Qxc4 {[%emt 0:0:22]
} 0-0 {[%emt 0:0:59]} 12. Ne5 {[%emt 0:2:1]} Nxe5 {[%emt 0:0:0]} 13. Bxe5 {[%emt 0:0:33]} Rd8 {[%emt 0:1:34]} 14. e4 {[%emt 0:0:51]} Bh7 {[%emt 0:0:21]} 15. Rfd1 {[%emt 0:0:29]} Qd7 {[%emt 0:2:45]} 16. Qe2 {[%emt 0:2:20]
} Qe8 {[%emt 0:0:59]} 17. Bf4 {[%emt 0:3:9]} Nd7 {[%emt 0:0:0]} 18. d5 {[%emt 0:1:5]} e5 {[%emt 0:1:4]} 19. Be3 {[%emt 0:0:47]} Nb6 {[%emt 0:1:13]
} 20. dxc6 {[%emt 0:0:44]} bxc6 {[%emt 0:0:21]} 21. Qa6 {[%emt 0:1:10]
} Rdb8 {[%emt 0:0:36]} 22. a3 {[%emt 0:1:3]} Qc8 {[%emt 0:0:0]} 23. Bf1 {[%emt 0:0:40]} Qe6 {[%emt 0:0:54]} 24. Qe2 {[%emt 0:1:9]} Bg6 {[%emt 0:0:28]} 25. f3 {[%emt 0:0:38]} f6 {[%emt 0:0:46]} 26. Qc2 {[%emt 0:0:0]} Bf7 {[%emt 0:0:30]} 27. b4 {[%emt 0:0:34]} Nc4 {[%emt 0:1:29]} 28. Bxc4 {[%emt 0:0:36]} Qxc4 {[%emt 0:0:21]} 29. Rd7 {[%emt 0:0:52]} Kf8 {[%emt 0:0:27]
} 30. Ne2 {[%emt 0:0:41]} Qa6 {[%emt 0:0:36]} 31. Rc7 {[%emt 0:0:0]} Be8 {[%emt 0:0:52]} 32. Bc5 {[%emt 0:0:27]} Bxc5+ {[%emt 0:0:38]} 33. Qxc5+ {[%emt 0:0:21]} Kg8 {[%emt 0:0:23]} 34. Qe7 {[%emt 0:0:25]} Qb6+ {[%emt 0:0:26]
} 35. Rc5 {[%emt 0:0:26]} 1-0

[Event "RUS-ch Rapid Women 2021"]
[White "Potapova,Margarita"]
[Black "Protopopova,Anastasiya"]
[Site "Sochi"]
[Round "10.5"]
[Annotator "NA"]
[Result "1-0"]
[Date "2021.10.13"]
[WhiteElo "2257"]
[BlackElo "2257"]
[PlyCount "83"]
[TimeControl "5400+30"]

1. d4 {[%emt 1:15:59]} Nf6 {[%emt 1:15:41]} 2. c4 {[%emt 0:0:22]} e6 {[%emt 0:0:0]} 3. Nc3 {[%emt 0:0:33]} Bb4 {[%emt 0:0:22]} 4. Qc2 {[%emt 0:0:22]} 0-0 {[%emt 0:0:23]} 5. e4 {[%emt 0:0:22]} d5 {[%emt 0:0:27]} 6. e5 {[%emt 0:0:0]} Ne4 {[%emt 0:0:24]} 7. Bd3 {[%emt 0:0:24]} c5 {[%emt 0:0:38]} 8. Nf3 {[%emt 0:0:22]} cxd4 {[%emt 0:0:29]} 9. Nxd4 {[%emt 0:0:23]} Nd7 {[%emt 0:0:0]} 10. Bf4 {[%emt 0:0:22]} Qh4 {[%emt 0:1:21]} 11. g3 {[%emt 0:0:26]} Qh3 {[%emt 0:1:1]} 12. 0-0-0 {[%emt 0:1:8]} Bxc3 {[%emt 0:1:34]} 13. bxc3 {[%emt 0:0:24]} Ndc5 {[%emt 0:0:31]} 14. Bf1 {[%emt 0:1:10]} Qh5 {[%emt 0:0:0]} 15. f3 {[%emt 0:2:3]} g5 {[%emt 0:2:18]} 16. Be3 {[%emt 0:1:39]} Bd7 {[%emt 0:1:30]} 17. fxe4 {[%emt 0:0:38]} Ba4 {[%emt 0:0:26]} 18. Nb3 {[%emt 0:1:5]
} Nxe4 {[%emt 0:0:29]} 19. Be2 {[%emt 0:0:52]} Qg6 {[%emt 0:0:0]} 20. Bd4 {[%emt 0:2:50]} Rac8 {[%emt 0:1:32]} 21. cxd5 {[%emt 0:0:45]} exd5 {[%emt 0:0:26]} 22. Bd3 {[%emt 0:0:23]} b5 {[%emt 0:1:28]} 23. Rhe1 {[%emt 0:0:33]
} b4 {[%emt 0:0:34]} 24. Bxe4 {[%emt 0:0:29]} dxe4 {[%emt 0:0:0]} 25. Qxe4 {[%emt 0:0:31]} Qe6 {[%emt 0:0:32]} 26. Kb2 {[%emt 0:1:54]} Rc4 {[%emt 0:0:33]} 27. Qe3 {[%emt 0:0:43]} h6 {[%emt 0:0:48]} 28. cxb4 {[%emt 0:1:28]
} Rxb4 {[%emt 0:1:4]} 29. Bc5 {[%emt 0:0:59]} Rxb3+ {[%emt 0:0:0]} 30. axb3 {[%emt 0:0:29]} Rb8 {[%emt 0:0:21]} 31. Rd3 {[%emt 0:0:59]} a5 {[%emt 0:0:44]} 32. Red1 {[%emt 0:0:47]} Kg7 {[%emt 0:1:19]} 33. Qf3 {[%emt 0:1:8]
} Qc4 {[%emt 0:1:7]} 34. Rc3 {[%emt 0:1:37]} Rxb3+ {[%emt 0:0:0]} 35. Rxb3 {[%emt 0:0:27]} Bxb3 {[%emt 0:0:31]} 36. Qxb3 {[%emt 0:0:0]} Qxc5 {[%emt 0:0:21]} 37. Qc3 {[%emt 0:0:45]} Qb5+ {[%emt 0:0:23]} 38. Kc1 {[%emt 0:0:29]} Kf8 {[%emt 0:1:48]} 39. Rd8+ {[%emt 0:0:40]} Ke7 {[%emt 0:0:22]
} 40. Qc7+ {[%emt 0:0:23]} Ke6 {[%emt 0:0:23]} 41. Qd6+ {[%emt 0:0:47]
} Kf5 {[%emt 0:0:23]} 42. Qd7+ {[%emt 0:0:25]} 1-0

[Event "RUS-ch Rapid Women 2021"]
[White "Vasilevich,Tatjana"]
[Black "Getman,Tatyana"]
[Site "Sochi"]
[Round "10.6"]
[Annotator "NA RC"]
[Result "1-0"]
[Date "2021.10.13"]
[WhiteElo "2326"]
[BlackElo "2198"]
[PlyCount "123"]
[TimeControl "5400+30"]

1. d4 {[%emt 1:15:31]} Nf6 {[%emt 1:15:41]} 2. c4 {[%emt 0:0:31]} e6 {[%emt 0:0:0]} 3. g3 {[%emt 0:0:21]} d5 {[%emt 0:0:22]} 4. Bg2 {[%emt 0:0:22]} dxc4 {[%emt 0:0:27]} 5. Nf3 {[%emt 0:0:20]} Nc6 {[%emt 0:0:57]} 6. 0-0 {[%emt 0:0:0]} Rb8 {[%emt 0:0:21]} 7. e3 {[%emt 0:1:2]} b5 {[%emt 0:0:25]} 8. Qe2 {[%emt 0:0:21]} Bb7 {[%emt 0:0:29]} 9. a4 {[%emt 0:0:36]} a6 {[%emt 0:0:53]
} 10. axb5 {[%emt 0:0:23]} axb5 {[%emt 0:0:22]} 11. Nc3 {[%emt 0:0:30]} Bc8 {[%emt 0:1:50]} 12. Rd1 {[%emt 0:1:42]} Nb4 {[%emt 0:1:14]} 13. e4 {[%emt 0:0:0]} Be7 {[%emt 0:0:45]} 14. d5 {[%emt 0:2:57]} exd5 {[%emt 0:0:25]} 15. e5 {[%emt 0:0:21]} Nd7 {[%emt 0:1:45]} 16. Nxd5 {[%emt 0:1:5]} 0-0 {[%emt 0:1:36]
} 17. e6 {[%emt 0:1:46]} fxe6 {[%emt 0:1:3]} 18. Qxe6+ {[%emt 0:0:41]
} Rf7 {[%emt 0:0:21]} 19. Nxb4 {[%emt 0:1:15]} Bxb4 {[%emt 0:0:0]} 20. Ng5 {[%emt 0:1:56]} Qf6 {[%emt 0:0:46]} 21. Qxf7+ {[%emt 0:1:12]
} Qxf7 {[%emt 0:0:22]} 22. Nxf7 {[%emt 0:0:24]} Kxf7 {[%emt 0:0:21]} 23. Bf4 {[%emt 0:0:50]} Bd6 {[%emt 0:1:25]} 24. Bxd6 {[%emt 0:0:36]} cxd6 {[%emt 0:0:0]} 25. Rxd6 {[%emt 0:0:25]} Ke7 {[%emt 0:0:38]} 26. Rd4 {[%emt 0:0:56]} Nc5 {[%emt 0:1:15]} 27. Re1+ {[%emt 0:1:12]} Be6 {[%emt 0:0:37]} 28. Bh3 {[%emt 0:0:48]
} Rb6 {[%emt 0:1:3]} 29. Rd5 {[%emt 0:0:59]} Kf6 {[%emt 0:0:0]} 30. Bxe6 {[%emt 0:1:10]} Nxe6 {[%emt 0:0:22]} 31. f4 {[%emt 0:0:30]} Nc7 {[%emt 0:1:27]} 32. Rd7 {[%emt 0:0:37]} Ne6 {[%emt 0:0:30]} 33. Red1 {[%emt 0:1:14]
} b4 {[%emt 0:2:3]} 34. R7d6 {[%emt 0:0:43]} Rxd6 {[%emt 0:0:0]} 35. Rxd6 {[%emt 0:0:22]} c3 {[%emt 0:1:32]} 36. bxc3 {[%emt 0:0:23]} bxc3 {[%emt 0:0:22]} 37. Rc6 {[%emt 0:0:25]} h5 {[%emt 0:1:2]} 38. Rxc3 {[%emt 0:0:24]
} g5 {[%emt 0:0:23]} 39. fxg5+ {[%emt 0:0:27]} Kxg5 {[%emt 0:0:0]} 40. Rc4 {[%emt 0:0:30]} Kf5 {[%emt 0:0:42]} 41. Kf2 {[%emt 0:0:23]} Kg5 {[%emt 0:0:26]} 42. Rb4 {[%emt 0:0:28]} Nf8 {[%emt 0:0:46]} 43. Rb5+ {[%emt 0:0:27]
} Kg6 {[%emt 0:0:27]} 44. Kf3 {[%emt 0:0:20]} Nd7 {[%emt 0:0:0]} 45. Kf4 {[%emt 0:0:26]} Nf6 {[%emt 0:0:39]} 46. Rb6 {[%emt 0:0:25]} Kg7 {[%emt 0:0:22]} 47. Kg5 {[%emt 0:0:29]} Ng4 {[%emt 0:0:22]} 48. Rb7+ {[%emt 0:0:29]
} Kg8 {[%emt 0:0:23]} 49. Kxh5 {[%emt 0:0:45]} Nxh2 {[%emt 0:0:0]} 50. Rb2 {[%emt 0:0:57]} Nf3 {[%emt 0:0:24]} 51. Kg6 {[%emt 0:0:33]} Ne5+ {[%emt 0:0:22]} 52. Kf5 {[%emt 0:0:21]} Nd7 {[%emt 0:0:24]} 53. g4 {[%emt 0:0:27]
} Nc5 {[%emt 0:0:31]} 54. Rd2 {[%emt 0:0:28]} Nb3 {[%emt 0:0:0]} 55. Rd5 {[%emt 0:0:22]} Nc1 {[%emt 0:0:27]} 56. Kg6 {[%emt 0:0:27]} Kf8 {[%emt 0:0:22]} 57. Rd8+ {[%emt 0:0:24]} Ke7 {[%emt 0:0:20]} 58. Rd1 {[%emt 0:0:22]
} Nb3 {[%emt 0:0:21]} 59. Kg7 {[%emt 0:0:24]} Nc5 {[%emt 0:0:0]} 60. Re1+ {[%emt 0:0:24]} Kd6 {[%emt 0:0:24]} 61. g5 {[%emt 0:0:23]} Kc6 {[%emt 0:0:32]} 62. Rc1 {[%emt 0:0:22]} 1-0

[Event "RUS-ch Rapid Women 2021"]
[White "Kovanova,Baira"]
[Black "Lysenko,Margarita"]
[Site "Sochi"]
[Round "11.1"]
[Annotator "NA"]
[Result "1-0"]
[Date "2021.10.13"]
[WhiteElo "2331"]
[BlackElo "2252"]
[PlyCount "67"]
[TimeControl "5400+30"]

1. e4 {[%emt 1:15:43]} c5 {[%emt 1:16:19]} 2. Nf3 {[%emt 0:0:21]} d6 {[%emt 0:0:0]} 3. d4 {[%emt 0:0:21]} cxd4 {[%emt 0:0:21]} 4. Nxd4 {[%emt 0:0:21]} Nf6 {[%emt 0:0:22]} 5. Nc3 {[%emt 0:0:21]} a6 {[%emt 0:0:22]} 6. Be3 {[%emt 0:0:22]
} e5 {[%emt 0:0:27]} 7. Nf3 {[%emt 0:0:22]} Be7 {[%emt 0:0:39]
} 8. Bc4 {[%emt 0:0:22]} 0-0 {[%emt 0:0:25]} 9. 0-0 {[%emt 0:0:22]} Be6 {[%emt 0:0:23]
} 10. Bb3 {[%emt 0:0:22]} h6 {[%emt 0:1:43]} 11. Nh4 {[%emt 0:0:0]} Nc6 {[%emt 0:3:9]} 12. Nf5 {[%emt 0:5:28]} Na5 {[%emt 0:2:3]} 13. Bd5 {[%emt 0:1:54]} Bxf5 {[%emt 0:4:1]} 14. exf5 {[%emt 0:0:22]} Nxd5 {[%emt 0:2:22]
} 15. Nxd5 {[%emt 0:0:33]} Nc6 {[%emt 0:1:18]} 16. Qg4 {[%emt 0:2:50]
} Kh7 {[%emt 0:0:47]} 17. Rad1 {[%emt 0:0:38]} Bg5 {[%emt 0:0:0]} 18. f6 {[%emt 0:2:7]} Bxf6 {[%emt 0:1:33]} 19. Qf5+ {[%emt 0:0:53]} Kg8 {[%emt 0:0:23]} 20. Bxh6 {[%emt 0:1:5]} Nd4 {[%emt 0:1:17]} 21. Nxf6+ {[%emt 0:0:35]
} Qxf6 {[%emt 0:0:28]} 22. Qxf6 {[%emt 0:0:22]} gxf6 {[%emt 0:0:0]} 23. Bxf8 {[%emt 0:0:21]} Kxf8 {[%emt 0:0:26]} 24. c3 {[%emt 0:0:21]} Nf5 {[%emt 0:1:1]} 25. g4 {[%emt 0:0:44]} Nh6 {[%emt 0:0:23]} 26. h3 {[%emt 0:0:56]
} Ke7 {[%emt 0:0:23]} 27. Rd5 {[%emt 0:0:48]} Rc8 {[%emt 0:0:0]} 28. Rfd1 {[%emt 0:0:52]} Rc6 {[%emt 0:0:22]} 29. c4 {[%emt 0:0:39]} Ke6 {[%emt 0:0:31]} 30. b4 {[%emt 0:0:27]} Ng8 {[%emt 0:0:46]} 31. c5 {[%emt 0:0:0]} dxc5 {[%emt 0:0:21]} 32. bxc5 {[%emt 0:0:21]} Rc7 {[%emt 0:0:31]} 33. Rd8 {[%emt 0:0:43]} Nh6 {[%emt 0:0:31]} 34. Re8+ {[%emt 0:0:21]} 1-0